lending/lending_fUSD_20240711
["ID","MTS","AMOUNT","RATE_DAILY","PERIOD"]
[331734026,1720716634506,-810.02,0.00013989,2]
[331734027,1720716634515,-623.63,0.00013989,2]
[331734028,1720716634525,-595.54,0.00013989,2]
[331734029,1720716634534,-897.5,0.00013989,2]
[331734030,1720716634544,-738.08,0.00013989,2]
[331734031,1720716634626,-620.9,0.00013989,2]
[331734032,1720716634636,-651.48,0.00013989,2]
[331734033,1720716634646,-155.64566313,0.00013989,2]
[331734034,1720716634660,-648.78,0.00013989,2]
[331734035,1720716634669,-500.0,0.00013989,2]
[331734036,1720716634679,-830.86,0.00013989,2]
[331734037,1720716634688,-749.48,0.00013989,2]
[331734038,1720716634698,-829.7,0.00013989,2]
[331734039,1720716634708,-609.98,0.00013989,2]
[331734040,1720716634717,-200.0,0.00013989,7]
[331734041,1720716634727,-626.36373021,0.00013989,2]
[331734042,1720716634738,-500.0,0.00013989,2]
[331734043,1720716634748,-298.50467804,0.00013989,2]
[331734044,1720716634759,-572.87,0.00013989,2]
[331734045,1720716634768,-5824.5549486,0.0001399,2]
[331734046,1720716634778,-4973.2458556,0.0001399,2]
[331734047,1720716634787,-4121.9367625,0.0001399,2]
[331734048,1720716634797,-3270.6276695,0.0001399,2]
[331734049,1720716634807,-2419.3185764,0.0001399,2]
[331734050,1720716634816,-30396.9969791,0.0001399,2]
[331734051,1720716634826,-25954.2129109,0.0001399,2]
[331734052,1720716634835,-21511.4288428,0.0001399,2]
[331734053,1720716634845,-17068.6447746,0.0001399,2]
[331734054,1720716634854,-12625.8607065,0.0001399,2]
[331734055,1720716634864,-1624.4479136,0.0001399,2]
[331734056,1720716634874,-1387.0207982,0.0001399,2]
[331734057,1720716634883,-1149.5936828,0.0001399,2]
[331734058,1720716634892,-912.1665673,0.0001399,2]
[331734059,1720716634902,-674.7394519,0.0001399,2]
[331734060,1720716634912,-700.9233788,0.0001399,2]
[331734061,1720716634921,-598.4773634,0.0001399,2]
[331734062,1720716634931,-496.031348,0.0001399,2]
[331734063,1720716634941,-393.5853326,0.0001399,2]
[331734064,1720716634951,-291.1393172,0.0001399,2]
[331734065,1720716634960,-150.0,0.00013991,2]
[331734066,1720716634970,-6675.8640417,0.00013995,2]
[331734067,1720716634979,-34839.7810473,0.00013995,2]
[331734068,1720716634989,-1861.875029,0.00013995,2]
[331734069,1720716634999,-150.0,0.00013997,2]
[331734070,1720716635010,-150.0,0.00013998,2]
[331734071,1720716635019,-243.3706196,0.00013999,2]
[331734072,1720716635029,-226.21782389,0.00013999,2]
[331734073,1720716635038,-633.94,0.00013999,2]
[331734074,1720716635047,-557.02,0.00013999,2]
[331734075,1720716635057,-563.39,0.00013999,2]
[331734076,1720716635067,-627.58,0.00013999,2]
[331734077,1720716635078,-664.35,0.00013999,2]
[331734078,1720716635088,-715.56,0.00013999,2]
[331734079,1720716635098,-500.0,0.00013999,2]
[331734080,1720716635108,-738.75,0.00013999,2]
[331734081,1720716635117,-639.23,0.00013999,2]
[331734082,1720716635127,-500.0,0.00013999,2]
[331734083,1720716635137,-625.14,0.00013999,2]
[331734084,1720716635149,-775.2,0.00013999,2]
[331734085,1720716635158,-500.0,0.00013999,2]
[331734086,1720716635167,-570.42,0.00013999,2]
[331734087,1720716635177,-500.0,0.00013999,2]
[331734088,1720716635187,-1000.0,0.00013999,2]
[331734089,1720716635198,-1000.0,0.00013999,2]
[331734090,1720716635207,-1000.0,0.00013999,2]
[331734091,1720716635218,-1000.0,0.00013999,2]
[331734092,1720716635228,-1000.0,0.00013999,2]
[331734093,1720716635238,-1000.0,0.00013999,2]
[331734094,1720716635248,-1000.0,0.00013999,2]
[331734095,1720716635258,-1000.0,0.00013999,2]
[331734096,1720716635268,-1000.0,0.00013999,2]
[331734097,1720716635277,-1000.0,0.00013999,2]
[331734098,1720716635287,-1000.0,0.00013999,2]
[331734099,1720716635296,-1000.0,0.00013999,2]
[331734100,1720716635306,-1000.0,0.00013999,2]
[331734101,1720716635315,-1000.0,0.00013999,2]
[331734102,1720716635325,-1000.0,0.00013999,2]
[331734103,1720716635335,-1000.0,0.00013999,2]
[331734104,1720716635344,-1000.0,0.00013999,2]
[331734105,1720716635353,-1000.0,0.00013999,2]
[331734106,1720716635363,-1000.0,0.00013999,2]
[331734107,1720716635372,-200.65751927,0.00013999,2]
[331734108,1720716635382,-579.77,0.00013999,2]
[331734109,1720716635392,-733.61,0.00013999,2]
[331734110,1720716635401,-177.46306126,0.00013999,2]
[331734111,1720716635414,-463.39693874,0.00013999,2]
[331734112,1720716635424,-130.15657395,0.00013999,2]
[331734113,1720716635436,-465.97342605,0.00013999,2]
[331734114,1720716635447,-341.24081163,0.00013999,2]
[331734115,1720716635467,-597.88918837,0.00013999,2]
[331734116,1720716635476,-678.76,0.00013999,2]
[331734117,1720716635486,-686.7,0.00013999,2]
[331734118,1720716635496,-589.34,0.00013999,2]
[331734119,1720716635507,-788.34,0.00013999,2]
[331734120,1720716635516,-842.01,0.00013999,2]
[331734121,1720716635526,-603.61,0.00013999,2]
[331734122,1720716635536,-309.83496123,0.00013999,2]
[331734123,1720716635546,-166.70918062,0.00013999,2]
[331734124,1720716635555,-194.24643572,0.00013999,2]
[331734125,1720716635565,-246.77971328,0.00013999,2]
[331734126,1720716635574,-1123.12381241,0.00014,2]
[331734143,1720716637770,-155.0,0.00012302,2]
[331734144,1720716637779,-316.0773283,0.00013128,2]
[331734145,1720716637789,-9648.08282595,0.000139,2]
[331734146,1720716637800,-351.91717405,0.000139,2]
[331734147,1720716637809,-1947.38786321,0.00014,2]
[331734148,1720716637820,-1291.06,0.00014,2]
[331734149,1720716637939,-545.8850205,0.00014,2]
[331734150,1720716637950,-300.0,0.00014,2]
[331734151,1720716639780,-914.78673795,0.0001397,2]
[331734152,1720716639792,-156.21326205,0.0001397,2]
[331734153,1720716639802,-998.48173795,0.00014,2]
[331734154,1720716639814,-597.3957488,0.00014,2]
[331734155,1720716639897,-1893.30491554,0.00014,2]
[331734156,1720716639915,-243.37061959,0.00013999,2]
[331734157,1720716639924,-10.07435939,0.00014,2]
[331734158,1720716639936,-345.91147168,0.00014,2]
[331734159,1720716639947,-12729.51414124,0.00014,2]
[331734160,1720716640076,-6975.76069161,0.00014,2]
[331734282,1720716642877,-200.0,0.00013155,2]
[331734285,1720716642886,-414.98003177,0.00014,2]
[331734288,1720716642897,-5519.85139082,0.00014,2]
[331734307,1720716642996,-172154.59338922,0.00014,2]
[331734309,1720716643007,-831.0,0.00014,2]
[331734312,1720716643018,-75986.28397798,0.00014,2]
[331734315,1720716643029,-214245.73956562,0.00014,2]
[331734320,1720716643041,-1468888.13096957,0.00014,2]
[331734322,1720716643049,-2000.0,0.00014,2]
[331734325,1720716643059,-295.68038896,0.00014,2]
[331734327,1720716643068,-270347.30873431,0.00014,2]
[331734331,1720716643079,-18727.74608,0.00014,2]
[331734336,1720716643099,-29072.25392,0.00014,2]
[331734339,1720716643114,-500.83133255,0.00014,2]
[331734342,1720716643126,-34484.99303155,0.00014,2]
[331734347,1720716643137,-867.78711,0.00014,2]
[331734422,1720716645875,-500.0,0.00013989,2]
[331734424,1720716645886,-42754.2867527,0.00014,2]
[331734444,1720716646051,-922.2131376,0.00014,2]
[331734446,1720716646062,-1149.61785932,0.00014,2]
[331734463,1720716646223,-392441.71523592,0.00014,2]
[331734487,1720716720374,500.0,0.0001126,2]
[331734491,1720716750751,150.0,0.00024051,120]
[331734512,1720716820773,1896.518,0.00011689,2]
[331734529,1720716870740,150.0,0.00022923,120]
[331734538,1720716889567,69.66078305,0.00010748,2]
[331734539,1720716889596,358.88921695,0.00010748,2]
[331734574,1720716990778,150.0,0.00025945,120]
[331734575,1720716993817,496.65211333,0.00011199,2]
[331734578,1720717006438,222.08600658,0.00010748,2]
[331734579,1720717006464,57.84783795,0.00010748,2]
[331734581,1720717022628,534.19365946,0.00011199,2]
[331734584,1720717037478,860.17499323,0.00011199,2]
[331734596,1720717088825,24728.49438693,0.00011199,2]
[331734612,1720717136493,6756.3942821,0.00011199,2]
[331734638,1720717225454,155.0,0.00011199,2]
[331734676,1720717389842,10817.7181454,0.00025,60]
[331734678,1720717401525,366.51724332,0.00011199,2]
[331734681,1720717427029,407.12,0.00010591,2]
[331734694,1720717495154,26158.48319794,0.00011199,2]
[331734696,1720717495906,156.48400865,0.00011199,2]
[331734704,1720717549610,1477.00441389,0.00011199,2]
[331734707,1720717564878,436.43793814,0.00011199,2]
[331734733,1720717683032,203.92024674,0.00011199,2]
[331734736,1720717696132,518.63271752,0.00011199,2]
[331734740,1720717709467,15376.78099222,0.00011199,2]
[331734745,1720717738650,-245.0,0.00012,2]
[331734747,1720717738680,-500.0,0.00012082,2]
[331734748,1720717738712,-245.0,0.0001211,2]
[331734751,1720717738740,-245.0,0.0001221,2]
[331734752,1720717738768,-1398.95077001,0.00012302,2]
[331734754,1720717738796,-245.0,0.0001232,2]
[331734755,1720717738824,-245.0,0.0001242,2]
[331734756,1720717738853,-1886.55221414,0.00012461,2]
[331734757,1720717738886,-5010.50298415,0.00012461,2]
[331734758,1720717738923,-3331.59698855,0.00012461,2]
[331734765,1720717776859,500.0,0.0001126,2]
[331734767,1720717790853,3027.57638009,0.00011199,2]
[331734773,1720717803334,2936.3715267,0.00011199,2]
[331734780,1720717831916,-774.92376784,0.00012302,2]
[331734781,1720717831926,-247.05258167,0.00012314,2]
[331734782,1720717831935,-282.21449494,0.00012314,2]
[331734783,1720717831944,-3363.28303373,0.00012461,2]
[331734784,1720717831965,-521.124372,0.00012461,2]
[331734785,1720717832035,-742.37040743,0.00012461,2]
[331734786,1720717832046,-210.45,0.00012504,2]
[331734787,1720717832055,-150.0,0.00012524,2]
[331734788,1720717832064,-1955.44,0.00012524,2]
[331734789,1720717832074,-250.0,0.00012528,2]
[331734790,1720717832083,-245.0,0.0001253,2]
[331734791,1720717832093,-1855.63,0.00012542,2]
[331734792,1720717832102,-1347.6,0.0001255,2]
[331734793,1720717832112,-800.0,0.00012555,2]
[331734794,1720717832121,-150.99,0.000126,2]
[331734795,1720717832130,-219.63,0.00012615,2]
[331734796,1720717832139,-207.42,0.00012617,2]
[331734797,1720717832148,-245.0,0.0001263,2]
[331734798,1720717832158,-200.0,0.00012646,2]
[331734799,1720717832167,-245.0,0.0001274,2]
[331734800,1720717832176,-245.0,0.0001284,2]
[331734801,1720717832185,-407.12,0.00012855,2]
[331734802,1720717832194,-150.0,0.00012892,2]
[331734803,1720717832204,-1389.1,0.00012893,2]
[331734804,1720717832213,-344.90157542,0.00012893,2]
[331734805,1720717832224,-4020.05519747,0.00012893,2]
[331734806,1720717832242,-1213.93749004,0.00012893,2]
[331734807,1720717832253,-334.61,0.00012893,2]
[331734808,1720717832271,-258.60629429,0.00012893,2]
[331734816,1720717838076,-520.25670657,0.00012893,2]
[331734817,1720717838201,-644.47142518,0.00012893,2]
[331734818,1720717838212,-6761.68653056,0.00012893,2]
[331734842,1720717839943,-884.16644664,0.00012893,2]
[331734844,1720717839955,-1340.83521693,0.00012893,2]
[331734849,1720717840002,-3455.39202086,0.00012893,2]
[331734861,1720717840686,-221.07109604,0.00012893,2]
[331734862,1720717840695,-4399.5817776,0.00012893,2]
[331734863,1720717840707,-18.4082224,0.00012893,2]
[331734864,1720717840717,-500.0,0.00012904,2]
[331734865,1720717840727,-245.0,0.0001295,2]
[331734866,1720717840736,-1250.0,0.00013,2]
[331734867,1720717840746,-245.0,0.0001305,2]
[331734868,1720717840755,-155.7163574,0.00013128,2]
[331734869,1720717840764,-486.61414226,0.00013128,2]
[331734870,1720717840772,-245.0,0.0001316,2]
[331734871,1720717840781,-905.14,0.00013178,2]
[331734872,1720717840790,-200.0,0.000132,4]
[331734873,1720717840799,-245.0,0.0001326,2]
[331734874,1720717840808,-205.0,0.0001326,2]
[331734875,1720717840817,-1077.62733686,0.00013264,2]
[331734876,1720717840827,-207.42,0.00013275,2]
[331734877,1720717840838,-500.0,0.000133,4]
[331734878,1720717840849,-245.0,0.0001337,2]
[331734879,1720717840859,-205.0,0.0001337,2]
[331734880,1720717840870,-700.0,0.000134,4]
[331734881,1720717840880,-245.0,0.0001347,2]
[331734882,1720717840889,-205.0,0.0001347,2]
[331734883,1720717840898,-1444.3966819,0.00013472,2]
[331734884,1720717840909,-1444.3966819,0.00013472,2]
[331734885,1720717840920,-308.80110569,0.00013472,2]
[331734886,1720717840931,-1000.0,0.000135,4]
[331734887,1720717840941,-940.90544796,0.00013516,2]
[331734888,1720717840951,-245.0,0.0001358,2]
[331734889,1720717840962,-205.0,0.0001358,2]
[331734890,1720717840971,-942.0,0.00013595,2]
[331734891,1720717840981,-1200.0,0.000136,4]
[331734892,1720717840990,-675.63294711,0.00013631,2]
[331734893,1720717841000,-403.4503373,0.00013648,2]
[331734894,1720717841011,-245.0,0.0001368,2]
[331734895,1720717841020,-205.0,0.0001368,2]
[331734896,1720717841030,-990.68644301,0.00013699,2]
[331734897,1720717841039,-200.0,0.00013699,2]
[331734898,1720717841050,-1343.85,0.00013699,2]
[331734899,1720717841059,-250.0,0.00013699,2]
[331734900,1720717841070,-306.64,0.00013699,2]
[331734901,1720717841084,-200.0,0.000137,5]
[331734902,1720717841094,-2377.0,0.0001372,2]
[331734903,1720717841103,-1304.0,0.0001372,2]
[331734904,1720717841112,-3276.0,0.0001372,2]
[331734905,1720717841121,-1990.0,0.0001372,2]
[331734906,1720717841130,-549.0,0.0001372,2]
[331734907,1720717841140,-283.0,0.0001372,2]
[331734908,1720717841149,-942.0,0.00013735,2]
[331734909,1720717841159,-528.85282997,0.00013736,2]
[331734910,1720717841169,-626.36373021,0.00013736,2]
[331734911,1720717841178,-1500.0,0.00013738,2]
[331734912,1720717841187,-1500.0,0.00013741,2]
[331734913,1720717841196,-1500.0,0.00013742,2]
[331734914,1720717841206,-435.64561998,0.00013746,2]
[331734915,1720717841217,-990.68644301,0.00013753,2]
[331734916,1720717841226,-1500.0,0.00013758,2]
[331734917,1720717841237,-1500.0,0.00013773,2]
[331734918,1720717841247,-245.0,0.0001379,2]
[331734919,1720717841256,-205.0,0.0001379,2]
[331734920,1720717841265,-1500.0,0.0001379,2]
[331734921,1720717841274,-1500.0,0.0001379,2]
[331734922,1720717841283,-5124.65784973,0.0001379,2]
[331734923,1720717841292,-1500.0,0.00013794,2]
[331734924,1720717841301,-1500.0,0.00013799,2]
[331734925,1720717841311,-223.11545433,0.00013799,2]
[331734926,1720717841320,-223.11545429,0.00013799,2]
[331734927,1720717841330,-223.11545429,0.00013799,2]
[331734928,1720717841339,-200.0,0.000138,5]
[331734929,1720717841348,-5124.65784966,0.000138,2]
[331734930,1720717841357,-200.23911881,0.00013802,2]
[331734931,1720717841367,-250.61758327,0.00013802,2]
[331734932,1720717841376,-5975.16048869,0.00013808,2]
[331734933,1720717841386,-990.68644301,0.00013808,2]
[331734934,1720717841395,-5124.65784966,0.00013813,2]
[331734935,1720717841404,-223.11545429,0.00013813,2]
[331734936,1720717841413,-1500.0,0.00013819,2]
[331734937,1720717841422,-5124.65784966,0.00013825,2]
[331734938,1720717841431,-223.11545429,0.00013828,2]
[331734939,1720717841440,-5124.65784966,0.00013838,2]
[331734940,1720717841449,-223.11545429,0.00013842,2]
[331734941,1720717841458,-300.0,0.00013843,2]
[331734942,1720717841469,-1199.0,0.00013846,2]
[331734943,1720717841478,-1265.84016916,0.00013849,2]
[331734944,1720717841487,-604.78351958,0.00013849,2]
[331734945,1720717841497,-224.71027766,0.00013849,2]
[331734946,1720717841507,-366.58364766,0.00013849,2]
[331734947,1720717841516,-5124.65784966,0.0001385,2]
[331734948,1720717841525,-223.11545429,0.00013857,2]
[331734949,1720717841534,-3000.0,0.0001386,2]
[331734950,1720717841544,-5124.65784966,0.00013863,2]
[331734951,1720717841553,-990.68644301,0.00013863,2]
[331734952,1720717841562,-24700.2276,0.0001387,2]
[331734953,1720717841571,-3000.0,0.0001387,2]
[331734954,1720717841580,-223.11545429,0.00013871,2]
[331734955,1720717841590,-1500.0,0.00013875,2]
[331734956,1720717841599,-5124.65784966,0.00013875,2]
[331734957,1720717841609,-942.0,0.00013876,2]
[331734958,1720717841618,-304.34682513,0.00013879,2]
[331734959,1720717841628,-3000.0,0.0001388,2]
[331734960,1720717841637,-223.11545429,0.00013886,2]
[331734961,1720717841646,-500.0,0.00013887,2]
[331734962,1720717841656,-5124.65784966,0.00013888,2]
[331734963,1720717841665,-13142.7856,0.00013888,2]
[331734964,1720717841675,-500.0,0.00013888,2]
[331734965,1720717841684,-500.0,0.00013888,2]
[331734966,1720717841693,-200.0,0.00013888,2]
[331734967,1720717841702,-168.14640675,0.00013889,2]
[331734968,1720717841711,-366.13143144,0.00013889,2]
[331734969,1720717841720,-202.25757491,0.00013889,2]
[331734970,1720717841729,-196.43586911,0.00013889,2]
[331734971,1720717841738,-217.90047204,0.00013889,2]
[331734972,1720717841748,-245.0,0.0001389,2]
[331734973,1720717841757,-205.0,0.0001389,2]
[331734974,1720717841766,-168.14640675,0.00013892,2]
[331734975,1720717841775,-168.14640675,0.00013895,2]
[331734976,1720717841784,-168.14640675,0.00013897,2]
[331734977,1720717841793,-346.55980804,0.00013899,2]
[331734978,1720717841802,-155.0,0.00013899,2]
[331734979,1720717841811,-195.95419342,0.00013899,2]
[331734980,1720717841823,-222.8249572,0.00013899,2]
[331734981,1720717841833,-10000.0,0.000139,2]
[331734982,1720717841842,-5124.65784966,0.000139,2]
[331734983,1720717841851,-200.0,0.000139,5]
[331734984,1720717841862,-168.14640675,0.000139,2]
[331734985,1720717841871,-321.56500655,0.000139,2]
[331734986,1720717841880,-223.11545429,0.000139,2]
[331734987,1720717841889,-3000.0,0.0001391,2]
[331734988,1720717841898,-300.0,0.00013916,2]
[331734989,1720717841907,-990.68644301,0.00013918,2]
[331734990,1720717841989,-1500.0,0.00013919,2]
[331734991,1720717842001,-300.0,0.00013919,2]
[331734992,1720717842011,-1500.0,0.00013932,2]
[331734993,1720717842020,-300.0,0.00013936,2]
[331734994,1720717842029,-300.0,0.00013939,2]
[331734995,1720717842038,-1500.0,0.00013939,2]
[331734996,1720717842048,-1500.0,0.0001395,2]
[331734997,1720717842057,-3000.0,0.0001396,2]
[331734998,1720717842066,-1659.0,0.0001397,2]
[331734999,1720717842077,-361.0,0.0001397,2]
[331735000,1720717842087,-1251.0,0.0001397,2]
[331735001,1720717842095,-1830.0,0.0001397,2]
[331735002,1720717842104,-2000.0,0.00013973,3]
[331735003,1720717842113,-718.25,0.00013975,2]
[331735004,1720717842122,-300.0,0.00013976,2]
[331735005,1720717842132,-1500.0,0.00013976,2]
[331735006,1720717842142,-1500.0,0.00013986,2]
[331735007,1720717842152,-300.0,0.00013987,2]
[331735008,1720717842162,-570.73,0.00013988,2]
[331735009,1720717842171,-707.33,0.00013988,2]
[331735010,1720717842181,-549.0,0.00013988,2]
[331735011,1720717842190,-595.03,0.00013988,2]
[331735012,1720717842200,-500.0,0.00013988,2]
[331735013,1720717842211,-471.02921028,0.00013988,2]
[331735014,1720717842221,-500.0,0.00013988,2]
[331735015,1720717842231,-501.22843274,0.00013988,2]
[331735016,1720717842242,-500.0,0.00013988,2]
[331735017,1720717842250,-500.0,0.00013988,2]
[331735018,1720717842259,-500.0,0.00013988,2]
[331735019,1720717842268,-500.0,0.00013988,2]
[331735020,1720717842277,-502.24184465,0.00013988,2]
[331735021,1720717842286,-621.75,0.00013988,2]
[331735022,1720717842295,-500.0,0.00013988,2]
[331735023,1720717842304,-566.46175849,0.00013988,2]
[331735024,1720717842314,-500.0,0.00013988,2]
[331735025,1720717842324,-796.24,0.00013988,2]
[331735026,1720717842334,-200.0,0.00013988,7]
[331735027,1720717842344,-607.53,0.00013988,2]
[331735028,1720717842354,-500.0,0.00013988,2]
[331735029,1720717842364,-539.92,0.00013988,2]
[331735030,1720717842373,-601.43,0.00013988,2]
[331735031,1720717842382,-636.66,0.00013988,2]
[331735032,1720717842391,-685.75,0.00013988,2]
[331735033,1720717842400,-500.0,0.00013988,2]
[331735034,1720717842409,-707.96,0.00013988,2]
[331735035,1720717842419,-599.09,0.00013988,2]
[331735036,1720717842428,-742.9,0.00013989,2]
[331735037,1720717842437,-522.88,0.00013989,2]
[331735038,1720717842447,-500.0,0.00013989,2]
[331735039,1720717842456,-555.62,0.00013989,2]
[331735040,1720717842465,-614.16,0.00013989,2]
[331735041,1720717842474,-703.04,0.00013989,2]
[331735042,1720717842483,-571.3,0.00013989,2]
[331735043,1720717842493,-900.0,0.00013989,2]
[331735044,1720717842502,-650.48,0.00013989,2]
[331735045,1720717842512,-658.09,0.00013989,2]
[331735046,1720717842521,-564.79,0.00013989,2]
[331735047,1720717842530,-755.49,0.00013989,2]
[331735048,1720717842540,-806.93,0.00013989,2]
[331735049,1720717842549,-578.46,0.00013989,2]
[331735051,1720717842558,-841.0,0.0001399,2]
[331735052,1720717842567,-245.0,0.0001399,2]
[331735053,1720717842576,-205.0,0.0001399,2]
[331735054,1720717842585,-1982.0278831,0.0001399,2]
[331735055,1720717842594,-1603.636627,0.0001399,2]
[331735056,1720717842603,-1225.245371,0.0001399,2]
[331735057,1720717842612,-846.8541149,0.0001399,2]
[331735058,1720717842621,-468.4628588,0.0001399,2]
[331735059,1720717842630,-500.0,0.00013997,2]
[331735060,1720717842640,-500.0,0.00013997,2]
[331735061,1720717842649,-500.0,0.00013997,2]
[331735062,1720717842658,-500.0,0.00013997,2]
[331735063,1720717842667,-500.0,0.00013997,2]
[331735064,1720717842676,-500.0,0.00013997,2]
[331735066,1720717842685,-500.0,0.00013997,2]
[331735068,1720717842695,-500.0,0.00013997,2]
[331735071,1720717842704,-500.0,0.00013997,2]
[331735074,1720717842713,-860.11,0.00013998,2]
[331735077,1720717842722,-500.0,0.00013998,2]
[331735080,1720717842731,-694.76,0.00013998,2]
[331735082,1720717842741,-503.26580304,0.00013998,2]
[331735084,1720717842751,-554.61,0.00013998,2]
[331735087,1720717842760,-500.0,0.00013998,2]
[331735090,1720717842770,-627.14551421,0.00013998,2]
[331735093,1720717842779,-500.0,0.00013998,2]
[331735096,1720717842788,-1104.09,0.00013998,2]
[331735097,1720717842797,-795.13,0.00013998,2]
[331735098,1720717842806,-500.0,0.00013998,2]
[331735099,1720717842815,-776.27,0.00013998,2]
[331735100,1720717842824,-584.56,0.00013998,2]
[331735101,1720717842835,-624.34,0.00013998,2]
[331735102,1720717842844,-3235.532447,0.00013998,2]
[331735103,1720717842853,-4853.29867,0.00013998,2]
[331735104,1720717842863,-6471.064894,0.00013998,2]
[331735105,1720717842872,-8088.831118,0.00013998,2]
[331735106,1720717842881,-11324.363565,0.00013998,2]
[331735107,1720717842890,-12942.129788,0.00013998,2]
[331735108,1720717842899,-612.6,0.00013998,2]
[331735109,1720717842908,-500.0,0.00013998,2]
[331735110,1720717842920,-1113.93944268,0.00013999,5]
[331735111,1720717842929,-158.35247672,0.00013999,2]
[331735112,1720717842938,-186162.59211673,0.00014,2]
[331735113,1720717842948,-1932706.7859501,0.00014,2]
[331735114,1720717842957,-2848181.02619111,0.00014,2]
[331735115,1720717842967,-823831.53037046,0.00014,2]
[331735116,1720717843012,-870.66974514,0.00014,2]
[331735117,1720717843198,-155.26295347,0.00013899,2]
[331735118,1720717843208,-500.0,0.00013998,2]
[331735119,1720717843217,-42.12828938,0.00014,2]
[331735120,1720717843238,-12320.28412043,0.00014,2]
[331735121,1720717843254,-10702.70300256,0.00014,2]
[331735122,1720717843265,-613.09825755,0.00014,2]
[331735123,1720717843276,-371.88983172,0.00014,2]
[331735124,1720717843360,-16028.95391769,0.00014,2]
[331735125,1720717843371,-419.87653924,0.00014,2]
[331735126,1720717843686,-851.90336111,0.00014,2]
[331735137,1720717846080,-308.48390406,0.00013648,2]
[331735138,1720717846090,-523.03077305,0.00014,2]
[331735139,1720717846139,-337.08969517,0.00014,2]
[331735140,1720717846151,-42814.15087304,0.00014,2]
[331735141,1720717846163,-682.3919219,0.00014,2]
[331735142,1720717846206,-791.028,0.00014,2]
[331735143,1720717846217,-3340.70768241,0.00014,2]
[331735144,1720717846227,-547.84176427,0.00014,2]
[331735145,1720717846238,-620.1702649,0.00014,2]
[331735146,1720717846324,-377.32309539,0.00014,2]
[331735147,1720717846337,-3385.86256862,0.00014,2]
[331735153,1720717887572,500.0,0.0001126,2]
[331735172,1720717972637,398.11,0.00010465,2]
[331735189,1720718089017,3773.19281835,0.00011199,2]
[331735190,1720718089046,3086.49351288,0.00011199,2]
[331735192,1720718097549,1345.90691696,0.00011199,2]
[331735193,1720718097577,558.60663486,0.00011199,2]
[331735216,1720718226596,509.96449523,0.00011199,2]
[331735218,1720718231594,-260.0,0.00012,2]
[331735219,1720718231618,-260.0,0.000121,2]
[331735220,1720718231642,-260.0,0.0001221,2]
[331735221,1720718231666,-163.92127245,0.00012273,2]
[331735222,1720718231690,-155.26840283,0.00012273,2]
[331735223,1720718231714,-156.06045591,0.00012273,2]
[331735224,1720718231739,-1000.0,0.00012276,2]
[331735225,1720718231763,-310.0,0.00012302,2]
[331735226,1720718231788,-439.52111545,0.00012302,2]
[331735227,1720718231814,-155.20374793,0.00012302,2]
[331735228,1720718231838,-269.8232753,0.00012302,2]
[331735229,1720718231863,-276.54348187,0.00012302,2]
[331735230,1720718231886,-260.0,0.0001231,2]
[331735231,1720718231910,-156.05006612,0.00012314,2]
[331735232,1720718231933,-178.50327553,0.00012314,2]
[331735233,1720718231960,-1536.94,0.00012376,2]
[331735234,1720718231984,-260.0,0.0001242,2]
[331735235,1720718232007,-260.0,0.0001252,2]
[331735236,1720718232034,-184.29,0.00012523,2]
[331735237,1720718232058,-299.99,0.00012523,2]
[331735238,1720718232082,-164.27,0.00012628,2]
[331735239,1720718232106,-499.99,0.00012628,2]
[331735240,1720718232134,-1136.73,0.00012628,2]
[331735241,1720718232159,-260.0,0.0001263,2]